bitfinex-derivatives/quotes_SOLF0:USTF0_20251221
["timestamp","ask_amount","ask_price","bid_price","bid_amount"]
[1766338165797,14.58346523,125.84,125.79,13.35697186]
[1766338167398,7.15743765,125.84,125.79,13.35697186]
[1766338168005,0.00273765,125.84,125.79,13.35697186]
[1766338189616,1.69891191,125.83,125.79,13.35697186]
[1766338193920,1.70164956,125.84,125.79,13.35697186]
[1766338194817,0.00273765,125.84,125.79,13.35697186]
[1766338196217,1.69891191,125.83,125.79,13.35697186]
[1766338200321,14.58631875,125.87,125.79,13.35697186]
[1766338200528,16.28487524,125.87,125.79,13.3]
[1766338200715,8.85165649,125.87,125.79,13.3]
[1766338201218,1.69855649,125.87,125.8,14.23]
[1766338201416,1.69855649,125.87,125.82,14.284065]
[1766338202112,1.69855649,125.88,125.82,14.284065]
[1766338202310,14.58451875,125.9,125.82,14.284065]
[1766338202512,0.05062955,125.87,125.85,0.06016212]
[1766338204419,1.74918604,125.87,125.82,14.23]
[1766338204617,1.69855649,125.87,125.82,14.23]
[1766338205522,0.06039317,125.86,125.83,0.05118839]
[1766338209031,0.06039317,125.86,125.83,13.83118839]
[1766338209530,0.00039317,125.86,125.83,13.83118839]
[1766338212827,0.00039317,125.86,125.83,20.98588839]
[1766338213031,0.00039317,125.86,125.84,13.78]
[1766338215134,0.00039317,125.86,125.85,13.78]
[1766338224444,0.00039317,125.86,125.83,13.83118839]
[1766338226231,0.00039317,125.86,125.83,0.05118839]
[1766338226435,0.00039317,125.86,125.8,7.1563]
[1766338226436,1.69855649,125.85,125.81,14.09]
[1766338227440,0.05793116,125.84,125.82,0.05898259]
[1766338232540,1.75648765,125.84,125.79,14.09]
[1766338232847,1.92648765,125.84,125.79,14.09]
[1766338233043,1.92648765,125.84,125.77,14.09]
[1766338233044,0.17,125.83,125.77,14.09]
[1766338233348,1.69855649,125.82,125.77,14.09]
[1766338233541,0.05876373,125.81,125.78,14.14792836]
[1766338237752,0.05876373,125.81,125.78,0.05792836]
[1766338240950,1.75878681,125.81,125.78,0.05792836]
[1766338241455,1.70002308,125.83,125.78,13.73792836]
[1766338242452,0.05299265,125.82,125.78,13.73792836]
[1766338250052,0.00299265,125.82,125.78,13.73792836]
[1766338260361,0.00299265,125.82,125.79,13.68]
[1766338261066,0.36,125.9,125.8,13.68]
[1766338261271,0.36,125.9,125.81,13.68]
[1766338262062,0.36,125.9,125.81,60.64]
[1766338262262,0.05141247,125.87,125.84,13.73073519]
[1766338276378,0.00141247,125.87,125.84,13.73073519]
[1766338291892,0.00141247,125.87,125.84,0.05073519]
[1766338292097,0.46141247,125.87,125.82,14.56]
[1766338292992,0.46141247,125.87,125.83,0.05428025]
[1766338296298,0.47,125.86,125.8,14.44]
[1766338296510,0.47,125.83,125.73,14.44]
[1766338296796,0.47,125.81,125.73,14.44]
[1766338297000,2.65215478,125.8,125.73,14.44]
[1766338297401,0.05631359,125.78,125.75,0.05136416]
[1766338297703,0.05631359,125.78,125.75,14.49136416]
[1766338301905,0.05631359,125.78,125.75,0.05136416]
[1766338302108,0.52631359,125.78,125.73,14.44]
[1766338303111,0.52631359,125.78,125.74,0.05227776]
[1766338304413,3.17846837,125.78,125.74,0.05227776]
[1766338304608,3.17846837,125.78,125.68,46.96]
[1766338304813,3.12215478,125.78,125.68,46.96]
[1766338305514,0.05985653,125.74,125.72,0.05318181]
[1766338308617,2.83985653,125.74,125.65,7.1649]
[1766338308814,5.43215478,125.74,125.65,7.1649]
[1766338309516,0.05656723,125.71,125.68,0.05712713]
[1766338309718,5.43215478,125.74,125.68,0.05712713]
[1766338310009,4.52228159,125.76,125.68,0.05712713]
[1766338310321,4.52228159,125.76,125.66,111.4483]
[1766338310513,4.52228159,125.76,125.68,14.44]
[1766338310712,4.52228159,125.76,125.71,14.49344986]
[1766338311806,0.05641187,125.75,125.71,14.49344986]
[1766338314627,1.70228159,125.79,125.71,14.49344986]
[1766338314919,1.70228159,125.79,125.72,14.44]
[1766338315720,0.05266438,125.77,125.74,0.05034726]
[1766338317530,0.05266438,125.77,125.74,14.49034726]
[1766338319226,0.00266438,125.77,125.74,14.49034726]
[1766338320230,1.70228159,125.83,125.74,14.49034726]
[1766338320524,4.64228159,125.83,125.74,14.44]
[1766338320725,1.70228159,125.85,125.74,14.44]
[1766338320930,1.70228159,125.85,125.76,14.44]
[1766338321229,0.05739439,125.82,125.79,0.06018945]
[1766338322435,1.75724622,125.82,125.79,0.06018945]
[1766338331133,0.05739439,125.82,125.79,0.06018945]
[1766338334629,2.92,125.85,125.79,13.78018945]
[1766338334833,51.64985183,125.87,125.79,13.78018945]
[1766338335035,51.64985183,125.87,125.79,13.72]
[1766338335440,2.97,125.86,125.79,13.72]
[1766338335742,0.05242232,125.84,125.81,0.05674611]
[1766338345349,0.05242232,125.84,125.81,13.77674611]
[1766338359252,0.05242232,125.84,125.81,0.05674611]
[1766338359445,1.69985183,125.82,125.76,13.92]
[1766338360452,5.465e-05,125.8,125.78,13.97063642]
[1766338366963,19.25691875,125.86,125.78,13.97063642]
[1766338367160,4.67,125.85,125.78,13.92]
[1766338367462,1.69968122,125.84,125.78,13.92]
[1766338367963,0.05798627,125.82,125.8,0.05516561]
[1766338369163,1.69968122,125.84,125.8,13.97516561]
[1766338369957,4.67,125.85,125.8,13.97516561]
[1766338370157,0.05582527,125.84,125.8,13.97516561]
[1766338382079,9.80707485,125.88,125.8,13.97516561]
[1766338382269,9.80707485,125.88,125.8,13.92]
[1766338382270,2.65487485,125.88,125.8,13.92]
[1766338382469,14.56588,125.91,125.81,13.92]
[1766338382673,2.37588,125.91,125.82,13.92]
[1766338382979,0.05592781,125.88,125.86,13.92]
[1766338383179,2.37588,125.91,125.86,13.92]
[1766338384077,0.05805062,125.9,125.86,13.92]
[1766338385177,14.95292547,125.9,125.85,0.05318135]
[1766338385879,14.89487485,125.88,125.81,13.27]
[1766338386784,0.05131818,125.86,125.83,0.05927498]
[1766338387084,0.05131818,125.86,125.83,13.32927498]
[1766338392086,0.05131818,125.86,125.81,13.27]
[1766338392289,14.89487485,125.88,125.81,13.27]
[1766338393286,0.05121132,125.86,125.83,0.05994774]
[1766338396290,0.05121132,125.86,125.81,13.27]
[1766338396888,2.70608617,125.86,125.81,13.27]
[1766338397298,2.70608617,125.86,125.82,13.32481873]
[1766338397588,0.05269373,125.85,125.82,13.32481873]
[1766338407017,14.72732599,125.85,125.77,13.27]
[1766338407209,2.65463226,125.83,125.77,13.27]
[1766338408111,0.05725776,125.81,125.79,0.06070226]
[1766338408313,7.1546,125.84,125.79,13.33070226]
[1766338408512,12.07,125.86,125.79,13.33070226]
[1766338409312,0.05969641,125.84,125.79,13.33070226]
[1766338416516,15.58463226,125.83,125.75,46.96]
[1766338416826,15.58463226,125.83,125.75,127.96]
[1766338417018,22.73973226,125.83,125.75,81.0]
[1766338417522,0.00193641,125.8,125.78,0.05266312]
[1766338417823,20.0842,125.85,125.74,111.3769]
[1766338418615,20.0842,125.85,125.79,12.99]
[1766338419623,0.0604249,125.83,125.81,0.06019564]
[1766338423631,0.0604249,125.83,125.81,0.00019564]
[1766338423632,12.9904249,125.83,125.81,0.00019564]
[1766338425828,12.9904249,125.83,125.77,12.99]
[1766338426830,12.9904249,125.83,125.79,0.05400399]
[1766338428030,0.0604249,125.83,125.79,13.04400399]
[1766338430324,14.62943236,125.89,125.79,13.04400399]
[1766338430523,14.62943236,125.89,125.79,12.99]
[1766338431228,14.62943236,125.89,125.83,0.05816932]
[1766338432430,0.0551876,125.87,125.83,0.05816932]
[1766338433732,0.0551876,125.87,125.83,13.04816932]
[1766338435631,1.75461996,125.87,125.83,13.04816932]
[1766338437939,1.75461996,125.87,125.83,0.05816932]
[1766338439232,0.0551876,125.87,125.83,0.05816932]
[1766338439534,1.75461996,125.87,125.83,0.05816932]
[1766338441141,1.75361466,125.87,125.83,0.05816932]
[1766338441334,21.83651466,125.87,125.83,0.05816932]
[1766338451760,0.0551876,125.87,125.83,15.26816932]
[1766338452559,14.3451876,125.87,125.83,15.26816932]
[1766338458064,0.0551876,125.87,125.83,15.26816932]
[1766338459066,15.98842706,125.9,125.83,15.26816932]
[1766338459771,1.69842706,125.9,125.83,15.26816932]
[1766338460170,1.69842706,125.9,125.8,82.69842706]
[1766338460171,1.69842706,125.84,125.8,14.79]
[1766338460658,1.69842706,125.85,125.8,14.79]
[1766338461278,0.05498991,125.84,125.81,0.05654887]
[1766338465772,14.62,125.9,125.81,14.84654887]
[1766338466074,1.69842706,125.88,125.81,14.79]
[1766338466773,0.05572112,125.86,125.83,14.84375243]
[1766338468076,1.75414818,125.86,125.83,14.84375243]
[1766338473677,1.75414818,125.86,125.83,0.05375243]
[1766338475475,0.05572112,125.86,125.83,15.62375243]
[1766338475776,1.69842706,125.88,125.83,15.62375243]
[1766338476086,1.69842706,125.9,125.83,15.62375243]
[1766338476383,1.69842706,125.9,125.84,14.82]
[1766338476590,1.69842706,125.89,125.84,14.82]
[1766338476882,0.0580783,125.88,125.85,14.87355674]
[1766338482069,51.03325287,125.91,125.85,14.87355674]
[1766338482275,1.69737287,125.89,125.85,14.87355674]
[1766338483085,0.04710495,125.88,125.85,14.87355674]
[1766338483586,2.37588,125.91,125.85,14.87355674]
[1766338483881,4.07325287,125.91,125.85,14.87355674]
[1766338484385,2.37588,125.91,125.86,14.82]
[1766338501889,25.23711852,125.94,125.86,14.82]
[1766338502191,15.16,125.94,125.89,14.87984839]
[1766338503799,10.07711852,125.96,125.89,14.87984839]
[1766338503998,25.23711852,125.96,125.89,14.87984839]
[1766338504200,17.81134056,125.96,125.89,14.87984839]
[1766338505199,24.95914056,125.96,125.89,14.87984839]
[1766338505402,15.55,125.93,125.89,0.05984839]
[1766338505703,18.20134056,125.92,125.87,15.29]
[1766338506715,0.05255492,125.91,125.88,0.06035576]
[1766338507002,0.05255492,125.91,125.87,15.29]
[1766338507207,7.40991956,125.95,125.87,15.29]
[1766338507395,18.20134056,125.95,125.87,15.29]
[1766338508088,0.05357671,125.92,125.9,0.0599458]
[1766338509496,0.05357671,125.92,125.87,15.29]
[1766338510502,0.05357671,125.92,125.88,0.05970288]
[1766338515407,0.05357671,125.92,125.85,127.92]
[1766338515408,15.55,125.91,125.85,96.29]
[1766338515601,18.20134056,125.91,125.85,96.29]
[1766338516198,15.55,125.91,125.85,96.29]
[1766338516513,0.05628045,125.89,125.87,0.05495632]
[1766338520305,22.95991956,125.92,125.87,15.34495632]
[1766338520510,15.55,125.92,125.87,15.34495632]
[1766338521415,0.05062306,125.91,125.87,15.34495632]
[1766338528211,16.67062306,125.91,125.87,0.05495632]
[1766338528616,24.08054262,125.91,125.87,0.05495632]
[1766338530717,16.62,125.9,125.87,0.05495632]
[1766338535217,23.7711,125.9,125.87,0.05495632]
[1766338538319,16.62,125.9,125.87,0.05495632]
[1766338538515,7.46054262,125.91,125.87,0.05495632]
[1766338538516,7.46054262,125.91,125.87,16.69495632]
[1766338538719,0.05062306,125.91,125.87,16.69495632]
[1766338544520,0.00062306,125.91,125.87,16.69495632]
[1766338555225,1.69748528,125.91,125.87,16.69495632]
[1766338558436,0.00062306,125.91,125.87,16.69495632]
[1766338570757,18.17755378,125.91,125.87,0.05495632]
[1766338570962,18.17755378,125.91,125.85,15.49]
[1766338570963,1.69693072,125.89,125.85,15.49]
[1766338572065,0.06109607,125.88,125.86,0.05443096]
[1766338591391,15.48,125.87,125.79,16.33]
[1766338591580,17.17693072,125.84,125.79,16.33]
[1766338591885,1.69693072,125.82,125.79,16.33]
[1766338592389,1.75185573,125.82,125.79,16.38717935]
[1766338594084,17.23185573,125.82,125.77,16.33]
[1766338595090,17.23185573,125.82,125.78,0.05974843]
[1766338595681,17.77693072,125.8,125.75,19.37021913]
[1766338595885,17.77693072,125.8,125.75,16.61]
[1766338596794,0.05341026,125.79,125.76,0.05479672]
[1766338613105,16.13341026,125.79,125.76,0.05479672]
[1766338613318,17.77996085,125.78,125.73,16.61]
[1766338614208,17.77996085,125.78,125.74,0.0585466]
[1766338614414,16.13250138,125.77,125.74,0.0585466]
[1766338616016,16.13250138,125.77,125.71,16.61]
[1766338617324,16.13250138,125.77,125.73,0.05216104]
[1766338617708,0.00250138,125.77,125.73,16.66216104]
[1766338621117,0.00250138,125.77,125.73,23.82246104]
[1766338621318,0.00250138,125.77,125.74,16.61]
[1766338626828,46.98,125.82,125.75,16.25]
[1766338627823,0.0551683,125.8,125.77,0.05663064]
[1766338628521,0.0551683,125.8,125.77,16.30663064]
[1766338634927,16.5951683,125.8,125.73,16.25]
[1766338635933,16.5951683,125.8,125.75,0.05176083]
[1766338636725,23.6974,125.79,125.75,0.05176083]
[1766338640829,16.54,125.78,125.75,0.05176083]
[1766338641525,16.54,125.78,125.7,135.1422]
[1766338641526,16.54,125.77,125.71,16.25]
[1766338641830,19.19797327,125.77,125.71,16.25]
[1766338642624,16.59640981,125.75,125.69,16.25]
[1766338642828,19.19864811,125.75,125.66,16.25]
[1766338643023,16.54,125.74,125.66,16.25]
[1766338643730,0.05504341,125.71,125.69,0.056879]
[1766338645731,0.05504341,125.71,125.67,16.25]
[1766338645932,16.59504341,125.71,125.63,16.25]
[1766338646129,16.54,125.71,125.63,16.25]
[1766338646832,16.54,125.71,125.66,0.05106338]
[1766338647035,0.05402443,125.68,125.66,0.05106338]
[1766338650440,0.00402443,125.68,125.66,0.05106338]
[1766338650734,0.00402443,125.68,125.63,16.25]
[1766338651628,0.00402443,125.68,125.6,111.5007]
[1766338651629,0.00402443,125.68,125.64,16.30343816]
[1766338651835,0.05485817,125.67,125.64,16.30343816]
[1766338654136,0.00485817,125.67,125.64,16.30343816]
[1766338659536,16.54,125.71,125.65,16.66]
[1766338659742,15.42,125.74,125.65,16.66]
[1766338659930,15.42,125.74,125.66,16.66]
[1766338660732,0.0510985,125.71,125.69,0.05146909]
[1766338660932,0.0010985,125.71,125.69,16.71146909]
[1766338664643,15.42,125.77,125.69,16.71146909]
[1766338664840,15.42,125.77,125.7,16.66]
[1766338665047,47.0,125.78,125.7,16.66]
[1766338665635,0.05200273,125.75,125.73,0.06109315]
[1766338666442,0.00200273,125.75,125.73,16.72109315]
[1766338668538,47.0,125.78,125.73,16.72109315]
[1766338669461,0.05467815,125.77,125.73,16.72109315]
[1766338670948,0.05467815,125.77,125.73,0.06109315]
[1766338674949,0.05467815,125.77,125.73,16.72109315]
[1766338680747,15.42,125.83,125.76,16.66]
[1766338680941,17.12060538,125.83,125.76,16.66]
[1766338681652,17.12060538,125.83,125.76,23.8188]
[1766338681851,0.05856146,125.81,125.78,0.05225353]
[1766338682250,1.70060538,125.84,125.78,16.71225353]
[1766338682449,1.69903679,125.84,125.78,16.71225353]
[1766338683257,1.75473883,125.82,125.78,16.71225353]
[1766338683459,1.75473883,125.82,125.74,63.64]
[1766338683460,1.69903679,125.8,125.74,63.64]
[1766338683858,1.69903679,125.8,125.75,16.66]
[1766338684153,15.42,125.81,125.75,16.66]
[1766338684358,17.11903679,125.81,125.75,16.66]
[1766338684548,0.05028559,125.79,125.77,0.05830974]
[1766338687258,18.41903679,125.83,125.77,15.92830974]
[1766338688343,0.05561098,125.81,125.77,15.92830974]
[1766338701452,1.69903679,125.83,125.77,15.92830974]
[1766338702565,0.05891189,125.81,125.77,15.92830974]
[1766338708066,23.8745,125.84,125.77,15.92830974]
[1766338708363,7.1545,125.84,125.77,15.92830974]
[1766338709171,0.05986111,125.82,125.77,15.92830974]
[1766338722886,8.85382221,125.84,125.77,15.92830974]
[1766338723389,7.41955782,125.84,125.78,16.68]
[1766338723589,7.41955782,125.86,125.78,16.68]
[1766338723783,0.00290827,125.83,125.81,16.73232811]
[1766338724094,7.41955782,125.87,125.81,16.73232811]
[1766338724394,9.11888003,125.89,125.81,16.73232811]
[1766338724691,9.11888003,125.89,125.81,16.68]
[1766338725187,0.05305206,125.86,125.84,0.05078902]
[1766338729000,18.08932221,125.85,125.76,16.68]
[1766338729294,1.69932221,125.83,125.77,63.64]
[1766338729595,1.69932221,125.83,125.78,16.68]
[1766338729891,1.69932221,125.83,125.79,0.05755554]
[1766338730092,0.05528591,125.82,125.79,0.05755554]
[1766338731491,0.05528591,125.82,125.79,16.73755554]
[1766338733698,16.39,125.86,125.79,16.73755554]
[1766338733898,1.69932221,125.87,125.79,16.73755554]
[1766338734199,1.69932221,125.87,125.81,16.68]
[1766338734394,1.69932221,125.87,125.81,63.64]
[1766338734795,0.05051552,125.85,125.83,0.05829232]
[1766338736100,0.00051552,125.85,125.83,0.05829232]
[1766338738300,0.00051552,125.85,125.83,16.73829232]
[1766338750606,23.3508,125.91,125.83,16.73829232]
[1766338750804,16.2,125.91,125.83,16.68]
[1766338751705,0.04094461,125.88,125.86,0.05346173]
[1766338751907,0.04094461,125.88,125.86,46.99346173]
[1766338752911,0.00094461,125.88,125.87,15.41]
[1766338756302,0.00094461,125.88,125.86,0.05346173]
[1766338756502,0.00094461,125.88,125.86,46.99346173]
[1766338757403,0.00094461,125.88,125.86,0.05346173]
[1766338765912,14.96,125.87,125.81,81.0]
[1766338766218,128.86381578,125.89,125.8,15.65]
[1766338766419,17.61301578,125.89,125.8,15.65]
[1766338767028,0.05440634,125.86,125.83,0.05550064]
[1766338767228,0.05440634,125.86,125.83,15.70550064]
[1766338767430,14.96,125.89,125.83,15.70550064]
[1766338770731,22.1118,125.89,125.83,15.70550064]
[1766338770936,14.96,125.89,125.83,15.70550064]
[1766338771936,7.1524,125.88,125.83,15.70550064]
[1766338774140,7.1524,125.88,125.83,0.05550064]
[1766338774141,17.61301578,125.87,125.83,0.05550064]
[1766338775133,17.61301578,125.87,125.74,2.65301578]
[1766338775134,23.17804279,125.86,125.78,16.29]
[1766338775335,23.1235,125.86,125.78,16.29]
[1766338775733,23.1246,125.84,125.78,16.29]
[1766338776041,15.97,125.84,125.78,16.29]
[1766338776233,0.05550064,125.82,125.8,0.05007595]
[1766338776431,0.05550064,125.82,125.78,16.29]
[1766338777544,0.05550064,125.82,125.79,0.05221806]
[1766338799249,16.02550064,125.82,125.79,0.05221806]
[1766338801942,17.7253672,125.82,125.79,0.05221806]
[1766338813071,16.02550064,125.82,125.79,0.05221806]
[1766338813372,17.7253672,125.82,125.79,0.05221806]
[1766338826885,0.05550064,125.82,125.79,0.05221806]
[1766338827789,0.05550064,125.82,125.79,14.61221806]
[1766338829688,15.03,125.86,125.8,14.56]
[1766338829886,24.14481487,125.88,125.8,14.56]
[1766338830086,15.03,125.87,125.8,14.56]
[1766338830691,0.05007595,125.85,125.82,0.06080024]
[1766338844206,7.595e-05,125.85,125.83,15.23]
[1766338849007,15.57822417,125.88,125.83,15.23]
[1766338849008,13.88,125.88,125.83,15.23]
[1766338849205,22.72962417,125.9,125.83,15.23]
[1766338850102,7.1517,125.89,125.85,0.05142204]
[1766338850304,21.0317,125.89,125.85,0.05142204]
[1766338859414,13.88,125.89,125.85,0.05142204]
[1766338863926,13.88,125.87,125.82,15.23]
[1766338864624,13.88,125.87,125.8,22.3862]
[1766338865024,0.05142204,125.85,125.82,0.05017794]
[1766338870626,0.00142204,125.85,125.82,13.67017794]
[1766338871725,0.00142204,125.85,125.82,20.82547794]
[1766338872326,0.00142204,125.85,125.82,13.67017794]
[1766338873328,0.00142204,125.85,125.82,60.61017794]
[1766338878526,0.00142204,125.85,125.82,13.67017794]
[1766338878829,0.00142204,125.85,125.82,60.61017794]
[1766338881735,0.00142204,125.85,125.82,0.05017794]
[1766338902462,12.53142204,125.85,125.82,0.05017794]
[1766338920280,0.00142204,125.85,125.82,0.05017794]
[1766338920475,0.00142204,125.85,125.82,12.92017794]
[1766338949107,0.00142204,125.85,125.83,11.71]
[1766338949313,0.00142204,125.85,125.82,7.20557794]
[1766338949314,0.00142204,125.85,125.84,46.94]
[1766338949813,0.00142204,125.85,125.84,58.65]
[1766338955824,0.00142204,125.85,125.82,88.20557794]
[1766338956027,0.00142204,125.85,125.83,46.94]
[1766338956527,0.00142204,125.85,125.82,0.05017794]
[1766338956831,13.7581428,125.84,125.8,46.94]
[1766338957829,13.7581428,125.84,125.81,0.06008508]
[1766338961838,1.69944147,125.83,125.81,0.06008508]
[1766338962036,13.75944147,125.83,125.81,8.508e-05]
[1766338963335,12.06,125.82,125.74,12.28]
[1766338964238,0.05288522,125.79,125.77,0.05538262]
[1766338966942,12.11288522,125.79,125.75,46.96]
[1766338967145,12.06,125.79,125.75,46.96]
[1766338967847,0.0583558,125.78,125.76,0.05692271]
[1766338970549,12.06,125.81,125.76,12.33692271]
[1766338971548,0.0512545,125.8,125.76,12.33692271]
[1766338986853,10.94,125.79,125.73,11.86]
[1766338987862,0.06029768,125.77,125.75,0.05671306]
[1766338989258,0.00029768,125.77,125.75,11.91671306]
[1766338990558,10.94,125.8,125.75,11.91671306]
[1766338991567,0.05947241,125.79,125.75,11.91671306]
[1766338993562,18.0951,125.83,125.75,11.91671306]
[1766338993769,18.0951,125.83,125.75,11.86]
[1766338994368,10.94,125.82,125.75,11.86]
[1766338994564,0.0458645,125.8,125.77,0.06015167]
[1766338996574,0.0458645,125.8,125.77,11.92015167]
[1766338997253,13.59682219,125.84,125.77,11.92015167]
[1766338998469,10.94,125.83,125.77,11.92015167]
[1766339002070,18.0952,125.83,125.77,11.92015167]
[1766339002564,10.94,125.82,125.77,11.92015167]
[1766339015474,18.0957,125.82,125.77,11.92015167]
[1766339015681,10.72,125.81,125.77,0.06015167]
[1766339016168,17.8762,125.81,125.77,0.06015167]
[1766339016479,10.72,125.8,125.77,0.06015167]
[1766339017674,17.8769,125.8,125.77,0.06015167]
[1766339022583,10.72,125.8,125.77,0.06015167]
[1766339024282,10.77111309,125.8,125.77,0.00015167]
[1766339033708,17.8774,125.79,125.77,0.00015167]
[1766339040214,17.8774,125.79,125.73,11.24]
[1766339041314,0.05009772,125.77,125.75,0.05312315]
[1766339068236,9.772e-05,125.77,125.75,10.18312315]
[1766339074238,9.772e-05,125.77,125.75,17.34252315]
[1766339074445,9.772e-05,125.77,125.76,10.13]
[1766339078140,9.772e-05,125.77,125.76,91.13]
[1766339079551,9.772e-05,125.77,125.76,138.11]
[1766339080344,9.772e-05,125.77,125.76,81.0]
[1766339080649,9.772e-05,125.77,125.76,127.98]
[1766339084149,9.772e-05,125.77,125.76,46.98]
[1766339093541,9.772e-05,125.77,125.76,57.45]
[1766339100064,9.772e-05,125.77,125.76,10.47]
[1766339100361,9.772e-05,125.77,125.76,57.43]
[1766339101857,9.772e-05,125.77,125.76,10.47]
[1766339102057,9.772e-05,125.77,125.76,57.43]
[1766339107665,9.772e-05,125.77,125.76,10.47]
[1766339107974,9.772e-05,125.77,125.76,57.43]
[1766339112170,9.772e-05,125.77,125.76,10.47]
[1766339112373,9.772e-05,125.77,125.76,57.43]
[1766339116372,9.772e-05,125.77,125.76,10.47]
[1766339116564,9.772e-05,125.77,125.76,57.43]
[1766339116761,9.772e-05,125.77,125.76,10.47]
[1766339116965,9.772e-05,125.77,125.76,57.43]
[1766339118174,9.772e-05,125.77,125.76,10.47]
[1766339118475,9.772e-05,125.77,125.76,57.43]
[1766339118776,9.772e-05,125.77,125.76,10.47]
[1766339118976,9.772e-05,125.77,125.76,57.43]
[1766339121680,9.772e-05,125.77,125.76,10.47]
[1766339121880,9.772e-05,125.77,125.76,57.43]
[1766339122080,16.42960109,125.83,125.77,10.86]
[1766339122274,10.77,125.83,125.77,10.86]
[1766339122478,10.77,125.83,125.77,57.82]
[1766339123181,10.77,125.83,125.79,0.060479]
[1766339123580,10.77,125.82,125.79,0.060479]
[1766339124081,10.77,125.82,125.79,0.000479]
[1766339124984,18.21172468,125.82,125.79,0.000479]
[1766339125173,18.27148704,125.82,125.79,0.000479]
[1766339132398,19.85148704,125.82,125.79,0.000479]
[1766339135902,10.85,125.81,125.79,0.000479]
[1766339147614,10.85,125.8,125.79,0.000479]
[1766339168233,18.0067,125.8,125.79,0.000479]
[1766339172430,18.0067,125.8,125.75,9.93]
[1766339172630,17.3274,125.79,125.75,9.93]
[1766339173127,9.14157592,125.8,125.73,10.84]
[1766339173128,17.3281,125.78,125.73,10.84]
[1766339173536,0.06065019,125.77,125.74,0.06090578]
[1766339179431,10.23065019,125.77,125.74,0.06090578]
[1766339192157,10.13,125.75,125.7,81.0]
[1766339192338,11.82985124,125.74,125.69,10.44]
[1766339193347,0.05648896,125.73,125.7,0.05871518]
[1766339196644,10.89648896,125.73,125.7,0.05871518]
[1766339199953,12.59856257,125.73,125.67,10.9]
[1766339200945,12.59856257,125.73,125.69,0.05664084]
[1766339205158,12.59856257,125.73,125.66,10.9]
[1766339205348,12.54207361,125.73,125.66,10.9]
[1766339205959,12.54207361,125.73,125.68,0.0563415]
[1766339206257,0.05149749,125.71,125.68,0.0563415]
[1766339206858,12.5935711,125.71,125.64,65.0656]
[1766339207050,12.5935711,125.71,125.64,57.9]
[1766339207755,12.5935711,125.71,125.66,0.05304955]
[1766339210965,10.89149749,125.71,125.66,10.95304955]
[1766339211663,10.89149749,125.71,125.66,0.05304955]
[1766339211863,10.89149749,125.71,125.66,10.95304955]
[1766339213656,0.05149749,125.71,125.66,10.95304955]
[1766339213862,0.05149749,125.71,125.66,12.65512316]
[1766339214370,0.05149749,125.71,125.66,10.95304955]
[1766339216568,10.84,125.75,125.67,12.60207361]
[1766339217564,0.05564258,125.72,125.7,0.05790716]
[1766339229272,11.53207361,125.75,125.7,10.24790716]
[1766339229978,9.83,125.75,125.7,10.24790716]
[1766339230177,0.05035239,125.74,125.7,10.24790716]
[1766339231371,9.88035239,125.74,125.7,0.05790716]
[1766339231577,9.83,125.73,125.66,10.19]
[1766339232465,0.06095676,125.71,125.68,0.0604105]
[1766339236276,9.89095676,125.71,125.68,0.0604105]
[1766339240681,9.89095676,125.71,125.68,0.0004105]
[1766339244584,9.83,125.75,125.68,10.1904105]
[1766339244882,9.83,125.75,125.69,10.19]
[1766339245585,0.05427185,125.73,125.71,0.05250401]
[1766339248786,9.97427185,125.73,125.71,0.00250401]
[1766339266403,0.05427185,125.73,125.71,0.00250401]
[1766339270000,10.30427185,125.73,125.71,0.00250401]
[1766339275202,10.30427185,125.73,125.66,9.96]
[1766339276198,10.30427185,125.73,125.68,0.05221605]
[1766339284510,17.46507185,125.73,125.68,0.05221605]
[1766339284707,10.25,125.72,125.68,0.05221605]
[1766339285913,17.4114,125.72,125.68,0.00221605]
[1766339286105,9.98,125.71,125.68,0.00221605]
[1766339300317,10.03427185,125.73,125.68,0.00221605]
[1766339303319,10.03427185,125.73,125.68,9.79221605]
[1766339319840,0.05427185,125.73,125.68,9.79221605]
[1766339327344,0.05427185,125.73,125.68,16.95551605]
[1766339327649,0.05427185,125.73,125.69,10.2]
[1766339330349,0.05427185,125.73,125.69,17.3628]
[1766339331750,0.05427185,125.73,125.69,64.3628]